fUSD/lending_fUSD_20250919
["ID","MTS","AMOUNT","RATE_DAILY","PERIOD"]
[386201292,1758240654648,-400.0,0.00022191,2]
[386201293,1758240654657,-400.0,0.00022191,2]
[386201294,1758240654667,-441.67,0.00022191,2]
[386201295,1758240654677,-400.0,0.00022191,2]
[386201296,1758240654691,-400.0,0.00022191,2]
[386201297,1758240654702,-400.0,0.00022191,2]
[386201298,1758240654713,-160.98582436,0.00022191,2]
[386201299,1758240654722,-400.0,0.00022191,2]
[386201300,1758240654733,-400.0,0.00022191,2]
[386201301,1758240654744,-435.4,0.00022191,2]
[386201302,1758240654756,-579.59,0.00022191,2]
[386201303,1758240654766,-400.0,0.00022191,2]
[386201304,1758240654775,-400.0,0.00022191,2]
[386201305,1758240654786,-943.52,0.00022191,2]
[386201306,1758240654796,-400.0,0.00022191,2]
[386201307,1758240654806,-1141.44,0.00022191,2]
[386201308,1758240654816,-400.0,0.00022191,2]
[386201309,1758240654827,-400.0,0.00022191,2]
[386201310,1758240654837,-400.0,0.00022191,2]
[386201311,1758240654848,-524.62,0.00022191,2]
[386201312,1758240654858,-400.0,0.00022191,2]
[386201313,1758240654868,-400.0,0.00022191,2]
[386201314,1758240654878,-400.0,0.00022191,2]
[386201315,1758240654888,-871.49,0.00022191,2]
[386201316,1758240654898,-676.39,0.00022191,2]
[386201317,1758240654908,-400.0,0.00022191,2]
[386201318,1758240654917,-400.0,0.00022191,2]
[386201319,1758240654927,-400.0,0.00022191,2]
[386201320,1758240654938,-400.0,0.00022191,2]
[386201321,1758240654947,-415.5660635,0.00022191,2]
[386201322,1758240654957,-400.0,0.00022191,2]
[386201323,1758240654967,-400.0,0.00022191,2]
[386201324,1758240654976,-400.0,0.00022191,2]
[386201325,1758240654987,-400.0,0.00022191,2]
[386201326,1758240654996,-419.82,0.00022191,2]
[386201327,1758240655006,-400.0,0.00022191,2]
[386201328,1758240655015,-400.0,0.00022191,2]
[386201329,1758240655025,-400.0,0.00022191,2]
[386201330,1758240655036,-400.0,0.00022191,2]
[386201331,1758240655046,-400.0,0.00022191,2]
[386201332,1758240655055,-673.65,0.00022191,2]
[386201333,1758240655065,-400.0,0.00022191,2]
[386201334,1758240655075,-510.4065437,0.00022191,2]
[386201335,1758240655085,-400.0,0.00022191,2]
[386201336,1758240655095,-400.0,0.00022191,2]
[386201337,1758240655105,-400.0,0.00022191,2]
[386201338,1758240655114,-400.0,0.00022191,2]
[386201339,1758240655124,-402.22,0.00022191,2]
[386201340,1758240655134,-400.0,0.00022191,2]
[386201341,1758240655144,-400.0,0.00022191,2]
[386201342,1758240655153,-400.0,0.00022191,2]
[386201343,1758240655163,-400.0,0.00022191,2]
[386201344,1758240655172,-412.4,0.00022191,2]
[386201345,1758240655182,-400.0,0.00022191,2]
[386201346,1758240655192,-401.17979285,0.00022191,2]
[386201347,1758240655202,-400.0,0.00022191,2]
[386201348,1758240655212,-789.84,0.00022191,2]
[386201349,1758240655221,-963.87,0.00022191,2]
[386201350,1758240655232,-400.0,0.00022191,2]
[386201351,1758240655242,-400.0,0.00022191,2]
[386201352,1758240655252,-400.0,0.00022191,2]
[386201353,1758240655262,-422.94,0.00022191,2]
[386201354,1758240655272,-400.0,0.00022191,2]
[386201355,1758240655282,-406.93,0.00022191,2]
[386201356,1758240655293,-400.0,0.00022191,2]
[386201357,1758240655307,-400.0,0.00022191,2]
[386201358,1758240655317,-400.0,0.00022191,2]
[386201359,1758240655327,-400.0,0.00022191,2]
[386201360,1758240655337,-433.05352462,0.00022191,2]
[386201361,1758240655348,-1909.42,0.00022191,2]
[386201362,1758240655357,-400.0,0.00022191,2]
[386201363,1758240655367,-400.0,0.00022191,2]
[386201364,1758240655378,-400.0,0.00022191,2]
[386201365,1758240655388,-4412.07,0.00022191,2]
[386201366,1758240655397,-400.0,0.00022191,2]
[386201367,1758240655407,-400.0,0.00022191,2]
[386201368,1758240655417,-400.0,0.00022191,2]
[386201369,1758240655427,-400.0,0.00022191,2]
[386201370,1758240655437,-2153.96,0.00022191,2]
[386201371,1758240655447,-400.0,0.00022191,2]
[386201372,1758240655456,-400.0,0.00022191,2]
[386201373,1758240655466,-438.85,0.00022191,2]
[386201374,1758240655476,-400.0,0.00022191,2]
[386201375,1758240655486,-998.86,0.00022191,2]
[386201376,1758240655501,-400.0,0.00022191,2]
[386201377,1758240655519,-502.31,0.00022191,2]
[386201378,1758240655529,-2496.62,0.00022191,2]
[386201379,1758240655539,-400.0,0.00022191,2]
[386201380,1758240655550,-1494.44,0.00022191,2]
[386201381,1758240655559,-177.41870814,0.00022191,2]
[386201382,1758240655570,-400.03,0.00022191,2]
[386201383,1758240655579,-338.12794875,0.00022191,2]
[386201384,1758240655590,-665.42,0.00022191,2]
[386201385,1758240655600,-400.0,0.00022191,2]
[386201386,1758240655610,-400.0,0.00022191,2]
[386201387,1758240655620,-400.0,0.00022191,2]
[386201388,1758240655630,-400.0,0.00022191,2]
[386201389,1758240655641,-525.41,0.00022191,2]
[386201390,1758240655651,-400.0,0.00022191,2]
[386201391,1758240655661,-581.72,0.00022191,2]
[386201392,1758240655671,-466.11,0.00022191,2]
[386201393,1758240655681,-400.0,0.00022191,2]
[386201394,1758240655695,-469.74,0.00022191,2]
[386201395,1758240655705,-497.35,0.00022191,2]
[386201396,1758240655715,-784.34,0.00022191,2]
[386201397,1758240655725,-400.0,0.00022191,2]
[386201398,1758240655740,-400.0,0.00022191,2]
[386201399,1758240655750,-1605.67,0.00022191,2]
[386201400,1758240655760,-400.0,0.00022191,2]
[386201401,1758240655770,-2267.04,0.00022191,2]
[386201402,1758240655781,-400.0,0.00022191,2]
[386201403,1758240655791,-400.0,0.00022191,2]
[386201404,1758240655925,-201.74,0.00022191,2]
[386201405,1758240655935,-415.66,0.00022191,2]
[386201406,1758240655945,-400.0,0.00022191,2]
[386201407,1758240655954,-529.79,0.00022191,2]
[386201408,1758240655964,-400.0,0.00022191,2]
[386201409,1758240655973,-2350.47,0.00022191,2]
[386201410,1758240655983,-400.0,0.00022191,2]
[386201411,1758240655992,-1077.65,0.00022191,2]
[386201412,1758240656002,-400.0,0.00022191,2]
[386201413,1758240656013,-400.0,0.00022191,2]
[386201414,1758240656024,-400.0,0.00022191,2]
[386201415,1758240656037,-400.0,0.00022191,2]
[386201416,1758240656047,-565.64,0.00022191,2]
[386201417,1758240656056,-1702.97,0.00022191,2]
[386201418,1758240656066,-567.53,0.00022191,2]
[386201419,1758240656078,-521.383325,0.00022191,2]
[386201420,1758240656088,-400.0,0.00022191,2]
[386201421,1758240656103,-572.42,0.00022191,2]
[386201422,1758240656112,-400.0,0.00022191,2]
[386201423,1758240656122,-400.0,0.00022191,2]
[386201424,1758240656132,-457.24,0.00022191,2]
[386201425,1758240656141,-274.520932,0.00022191,2]
[386201426,1758240656151,-400.0,0.00022191,2]
[386201427,1758240656160,-400.0,0.00022191,2]
[386201428,1758240656170,-400.0,0.00022191,2]
[386201429,1758240656179,-400.0,0.00022191,2]
[386201430,1758240656188,-400.0,0.00022191,2]
[386201431,1758240656198,-403.23449613,0.00022191,2]
[386201432,1758240656207,-523.431343,0.00022191,2]
[386201433,1758240656217,-400.0,0.00022191,2]
[386201434,1758240656226,-400.0,0.00022191,2]
[386201435,1758240656236,-417.55,0.00022191,2]
[386201436,1758240656245,-419.89,0.00022191,2]
[386201437,1758240656254,-400.0,0.00022191,2]
[386201438,1758240656264,-400.0,0.00022191,2]
[386201439,1758240656273,-210.77225012,0.00022191,2]
[386201440,1758240656283,-400.0,0.00022191,2]
[386201441,1758240656292,-551.37,0.00022191,2]
[386201442,1758240656301,-1076.16,0.00022191,2]
[386201443,1758240656311,-2981.48,0.00022191,2]
[386201444,1758240656320,-490.46,0.00022191,2]
[386201445,1758240656330,-448.9,0.00022191,2]
[386201446,1758240656341,-837.0,0.00022191,2]
[386201447,1758240656353,-419.24,0.00022191,2]
[386201448,1758240656364,-400.0,0.00022191,2]
[386201449,1758240656374,-400.0,0.00022191,2]
[386201450,1758240656383,-1157.15,0.00022191,2]
[386201451,1758240656393,-400.0,0.00022191,2]
[386201452,1758240656402,-400.0,0.00022191,2]
[386201453,1758240656412,-454.3,0.00022191,2]
[386201454,1758240656422,-678.43,0.00022191,2]
[386201455,1758240656437,-400.0,0.00022191,2]
[386201456,1758240656448,-439.87,0.00022191,2]
[386201457,1758240656459,-400.0,0.00022191,2]
[386201458,1758240656468,-419.44,0.00022191,2]
[386201459,1758240656478,-400.0,0.00022191,2]
[386201460,1758240656487,-1191.48,0.00022191,2]
[386201461,1758240656496,-400.0,0.00022191,2]
[386201462,1758240656509,-611.04,0.00022191,2]
[386201463,1758240656519,-400.0,0.00022191,2]
[386201464,1758240656528,-400.0,0.00022191,2]
[386201465,1758240656538,-1060.36,0.00022191,2]
[386201466,1758240656547,-400.0,0.00022191,2]
[386201467,1758240656557,-400.0,0.00022191,2]
[386201468,1758240656566,-1247.33,0.00022191,2]
[386201469,1758240656575,-484.79,0.00022191,2]
[386201470,1758240656585,-400.0,0.00022191,2]
[386201471,1758240656594,-400.0,0.00022191,2]
[386201472,1758240656603,-400.0,0.00022191,2]
[386201473,1758240656613,-400.0,0.00022191,2]
[386201474,1758240656622,-400.0,0.00022191,2]
[386201475,1758240656632,-400.0,0.00022191,2]
[386201476,1758240656642,-400.0,0.00022191,2]
[386201477,1758240656652,-1119.89,0.00022191,2]
[386201478,1758240656661,-665.03,0.00022191,2]
[386201479,1758240656670,-400.0,0.00022191,2]
[386201480,1758240656680,-946.91,0.00022191,2]
[386201481,1758240656694,-400.0,0.00022191,2]
[386201482,1758240656703,-2980.73,0.00022191,2]
[386201483,1758240656712,-400.0,0.00022191,2]
[386201484,1758240656722,-400.0,0.00022191,2]
[386201485,1758240656733,-551.9,0.00022191,2]
[386201486,1758240656744,-400.0,0.00022191,2]
[386201487,1758240656754,-546.5,0.00022191,2]
[386201488,1758240656764,-400.0,0.00022191,2]
[386201489,1758240656773,-1565.31,0.00022191,2]
[386201490,1758240656783,-400.0,0.00022191,2]
[386201491,1758240656792,-434.24,0.00022191,2]
[386201492,1758240656802,-400.0,0.00022191,2]
[386201493,1758240656812,-400.0,0.00022191,2]
[386201494,1758240656821,-1005.15,0.00022191,2]
[386201495,1758240656831,-400.0,0.00022191,2]
[386201496,1758240656841,-400.0,0.00022191,2]
[386201497,1758240656851,-400.0,0.00022191,2]
[386201498,1758240656860,-737.94,0.00022191,2]
[386201499,1758240656869,-400.0,0.00022191,2]
[386201500,1758240656879,-400.0,0.00022191,2]
[386201501,1758240656889,-406.43,0.00022191,2]
[386201502,1758240656898,-400.0,0.00022191,2]
[386201503,1758240656908,-400.0,0.00022191,2]
[386201504,1758240656917,-400.0,0.00022191,2]
[386201505,1758240656928,-400.0,0.00022191,2]
[386201506,1758240656937,-400.0,0.00022191,2]
[386201507,1758240656947,-608.08,0.00022191,2]
[386201508,1758240656956,-568.36,0.00022191,2]
[386201509,1758240656966,-407.72,0.00022191,2]
[386201510,1758240656975,-400.0,0.00022191,2]
[386201511,1758240656985,-400.0,0.00022191,2]
[386201512,1758240656995,-400.0,0.00022191,2]
[386201513,1758240657004,-2117.58,0.00022191,2]
[386201514,1758240657014,-597.51,0.00022191,2]
[386201515,1758240657023,-400.0,0.00022191,2]
[386201516,1758240657032,-477.0,0.00022191,2]
[386201517,1758240657042,-400.0,0.00022191,2]
[386201518,1758240657052,-400.0,0.00022191,2]
[386201519,1758240657061,-530.0,0.00022191,2]
[386201520,1758240657071,-406.81782572,0.00022191,2]
[386201521,1758240657080,-592.43,0.00022191,2]
[386201522,1758240657090,-400.0,0.00022191,2]
[386201523,1758240657099,-400.0,0.00022191,2]
[386201524,1758240657109,-566.51,0.00022191,2]
[386201525,1758240657118,-400.0,0.00022191,2]
[386201526,1758240657127,-652.43,0.00022191,2]
[386201527,1758240657137,-400.0,0.00022191,2]
[386201528,1758240657147,-252.39253966,0.00022191,2]
[386201529,1758240657156,-400.0,0.00022191,2]
[386201530,1758240657166,-400.0,0.00022191,2]
[386201531,1758240657175,-525.36,0.00022191,2]
[386201532,1758240657185,-400.0,0.00022191,2]
[386201533,1758240657194,-1756.09,0.00022191,2]
[386201534,1758240657204,-400.0,0.00022191,2]
[386201535,1758240657213,-400.0,0.00022191,2]
[386201536,1758240657222,-400.0,0.00022191,2]
[386201537,1758240657232,-496.38,0.00022191,2]
[386201538,1758240657241,-400.0,0.00022191,2]
[386201539,1758240657251,-525.49,0.00022191,2]
[386201540,1758240657261,-400.0,0.00022191,2]
[386201541,1758240657271,-400.0,0.00022191,2]
[386201542,1758240657281,-916.02,0.00022191,2]
[386201543,1758240657290,-400.0,0.00022191,2]
[386201544,1758240657300,-400.0,0.00022191,2]
[386201545,1758240657309,-400.0,0.00022191,2]
[386201546,1758240657319,-400.0,0.00022191,2]
[386201547,1758240657328,-1263.84,0.00022191,2]
[386201548,1758240657338,-2722.17,0.00022191,2]
[386201549,1758240657347,-611.6,0.00022191,2]
[386201550,1758240657356,-1030.38,0.00022191,2]
[386201551,1758240657366,-834.55,0.00022191,2]
[386201552,1758240657375,-400.0,0.00022191,2]
[386201553,1758240657385,-2739.2,0.00022191,2]
[386201554,1758240657395,-799.55,0.00022191,2]
[386201555,1758240657404,-680.36,0.00022191,2]
[386201556,1758240657414,-444.72,0.00022191,2]
[386201557,1758240657423,-400.0,0.00022191,2]
[386201558,1758240657433,-404.58348599,0.00022191,2]
[386201559,1758240657443,-637.63,0.00022191,2]
[386201560,1758240657453,-400.0,0.00022191,2]
[386201561,1758240657462,-400.0,0.00022191,2]
[386201562,1758240657471,-400.0,0.00022191,2]
[386201563,1758240657481,-517.61,0.00022191,2]
[386201564,1758240657490,-412.11,0.00022191,2]
[386201565,1758240657499,-400.0,0.00022191,2]
[386201566,1758240657508,-470.54,0.00022191,2]
[386201567,1758240657518,-417.96,0.00022191,2]
[386201568,1758240657527,-534.01,0.00022191,2]
[386201569,1758240657538,-494.83,0.00022191,2]
[386201570,1758240657547,-400.0,0.00022191,2]
[386201571,1758240657557,-543.34,0.00022191,2]
[386201572,1758240657567,-400.0,0.00022191,2]
[386201573,1758240657576,-400.0,0.00022191,2]
[386201574,1758240657585,-409.89517118,0.00022191,2]
[386201575,1758240657595,-400.0,0.00022191,2]
[386201576,1758240657606,-400.0,0.00022191,2]
[386201577,1758240657620,-689.62,0.00022191,2]
[386201578,1758240657630,-400.0,0.00022191,2]
[386201579,1758240657639,-400.0,0.00022191,2]
[386201580,1758240657649,-400.0,0.00022191,2]
[386201581,1758240657658,-440.67,0.00022191,2]
[386201582,1758240657668,-532.05,0.00022191,2]
[386201583,1758240657678,-422.93,0.00022191,2]
[386201584,1758240657692,-400.0,0.00022191,2]
[386201585,1758240657702,-436.69,0.00022191,2]
[386201586,1758240657711,-400.0,0.00022191,2]
[386201587,1758240657720,-400.0,0.00022191,2]
[386201588,1758240657732,-960.61,0.00022191,2]
[386201589,1758240657742,-400.0,0.00022191,2]
[386201590,1758240657752,-400.0,0.00022191,2]
[386201591,1758240657762,-864.93,0.00022191,2]
[386201592,1758240657771,-402.24005979,0.00022191,2]
[386201593,1758240657782,-1497.75,0.00022191,2]
[386201594,1758240657792,-400.0,0.00022191,2]
[386201595,1758240657802,-538.71,0.00022191,2]
[386201596,1758240657811,-400.0,0.00022191,2]
[386201597,1758240657822,-400.0,0.00022191,2]
[386201598,1758240657832,-400.0,0.00022191,2]
[386201599,1758240657841,-400.0,0.00022191,2]
[386201600,1758240657851,-867.95,0.00022191,2]
[386201601,1758240657861,-400.0,0.00022191,2]
[386201602,1758240657871,-400.0,0.00022191,2]
[386201603,1758240657881,-513.7,0.00022191,2]
[386201604,1758240657891,-400.0,0.00022191,2]
[386201605,1758240657900,-400.0,0.00022191,2]
[386201606,1758240657909,-750.55,0.00022191,2]
[386201607,1758240657919,-2175.44,0.00022191,2]
[386201608,1758240657928,-400.0,0.00022191,2]
[386201609,1758240657938,-400.0,0.00022191,2]
[386201610,1758240657949,-501.64,0.00022191,2]
[386201611,1758240657959,-453.09,0.00022191,2]
[386201612,1758240657971,-400.0,0.00022191,2]
[386201613,1758240657980,-719.48,0.00022191,2]
[386201614,1758240657990,-400.0,0.00022191,2]
[386201615,1758240657999,-555.18,0.00022191,2]
[386201616,1758240658009,-400.0,0.00022191,2]
[386201617,1758240658019,-561.7,0.00022191,2]
[386201618,1758240658029,-400.0,0.00022191,2]
[386201619,1758240658039,-400.0,0.00022191,2]
[386201620,1758240658049,-400.0,0.00022191,2]
[386201621,1758240658059,-400.0,0.00022191,2]
[386201622,1758240658068,-529.75,0.00022191,2]
[386201623,1758240658078,-400.0,0.00022191,2]
[386201624,1758240658087,-1255.27,0.00022191,2]
[386201625,1758240658098,-400.0,0.00022191,2]
[386201626,1758240658107,-400.0,0.00022191,2]
[386201627,1758240658117,-1949.79,0.00022191,2]
[386201628,1758240658127,-400.0,0.00022191,2]
[386201629,1758240658136,-471.03,0.00022191,2]
[386201630,1758240658146,-517.69,0.00022191,2]
[386201631,1758240658155,-400.0,0.00022191,2]
[386201632,1758240658165,-400.0,0.00022191,2]
[386201633,1758240658175,-400.0,0.00022191,2]
[386201634,1758240658184,-400.0,0.00022191,2]
[386201635,1758240658194,-452.36,0.00022191,2]
[386201636,1758240658203,-400.0,0.00022191,2]
[386201637,1758240658213,-402.31763481,0.00022191,2]
[386201638,1758240658222,-400.0,0.00022191,2]
[386201639,1758240658231,-1662.74,0.000222,2]
[386201640,1758240658241,-239.3,0.00022235,2]
[386201641,1758240658251,-4618.72160268,0.00022274,2]
[386201642,1758240658260,-166.66,0.00022358,2]
[386201643,1758240658270,-2130.47978977,0.00022368,2]
[386201644,1758240658280,-357.0,0.0002237,2]
[386201645,1758240658290,-809.95853118,0.00022428,2]
[386201646,1758240658299,-500.0,0.00022438,2]
[386201647,1758240658309,-500.0,0.00022438,2]
[386201648,1758240658318,-500.0,0.00022438,2]
[386201649,1758240658330,-1522.0,0.00022438,2]
[386201650,1758240658339,-500.0,0.00022464,2]
[386201651,1758240658348,-500.0,0.00022464,2]
[386201652,1758240658358,-494.47209753,0.00022464,2]
[386201653,1758240658367,-500.0,0.00022464,2]
[386201654,1758240658376,-2278.89,0.00022464,2]
[386201655,1758240658386,-169.51068436,0.00022465,2]
[386201656,1758240658396,-400.0,0.00022465,2]
[386201657,1758240658405,-400.0,0.00022465,2]
[386201658,1758240658415,-400.0,0.00022465,2]
[386201659,1758240658424,-400.0,0.00022465,2]
[386201660,1758240658434,-400.0,0.00022465,2]
[386201661,1758240658444,-400.0,0.00022465,2]
[386201662,1758240658454,-400.0,0.00022465,2]
[386201663,1758240658463,-400.0,0.00022465,2]
[386201664,1758240658474,-400.0,0.00022465,2]
[386201665,1758240658484,-400.0,0.00022465,2]
[386201666,1758240658494,-400.0,0.00022465,2]
[386201667,1758240658504,-400.0,0.00022465,2]
[386201668,1758240658514,-462.33,0.00022465,2]
[386201669,1758240658523,-400.0,0.00022465,2]
[386201670,1758240658533,-453.87,0.00022465,2]
[386201671,1758240658543,-400.0,0.00022465,2]
[386201672,1758240658552,-400.0,0.00022465,2]
[386201673,1758240658562,-481.11,0.00022465,2]
[386201674,1758240658583,-188.76,0.00022465,2]
[386201675,1758240658593,-400.0,0.00022465,2]
[386201676,1758240658603,-400.0,0.00022465,2]
[386201677,1758240658613,-400.0,0.00022465,2]
[386201678,1758240658623,-400.0,0.00022465,2]
[386201679,1758240658633,-400.0,0.00022465,2]
[386201680,1758240658643,-400.0,0.00022465,2]
[386201681,1758240658654,-400.0,0.00022465,2]
[386201682,1758240658664,-400.0,0.00022465,2]
[386201683,1758240658674,-400.0,0.00022465,2]
[386201684,1758240658687,-400.0,0.00022465,2]
[386201685,1758240658697,-400.0,0.00022465,2]
[386201686,1758240658708,-400.0,0.00022465,2]
[386201687,1758240658721,-400.0,0.00022465,2]
[386201688,1758240658731,-400.0,0.00022465,2]
[386201689,1758240658742,-400.0,0.00022465,2]
[386201690,1758240658752,-400.0,0.00022465,2]
[386201691,1758240658762,-400.0,0.00022465,2]
[386201692,1758240658772,-400.0,0.00022465,2]
[386201693,1758240658783,-400.0,0.00022465,2]
[386201694,1758240658793,-400.0,0.00022465,2]
[386201695,1758240658803,-400.0,0.00022465,2]
[386201696,1758240658812,-400.0,0.00022465,2]
[386201697,1758240658822,-479.48,0.00022465,2]
[386201698,1758240658832,-400.0,0.00022465,2]
[386201699,1758240658842,-400.0,0.00022465,2]
[386201700,1758240658853,-400.0,0.00022465,2]
[386201701,1758240658863,-400.0,0.00022465,2]
[386201702,1758240658873,-400.0,0.00022465,2]
[386201703,1758240658883,-400.0,0.00022465,2]
[386201704,1758240658892,-400.0,0.00022465,2]
[386201705,1758240658902,-400.0,0.00022465,2]
[386201706,1758240658912,-400.0,0.00022465,2]
[386201707,1758240658922,-400.0,0.00022465,2]
[386201708,1758240658931,-400.0,0.00022465,2]
[386201709,1758240658941,-597.68,0.00022465,2]
[386201710,1758240658951,-400.0,0.00022465,2]
[386201711,1758240658960,-1165.48,0.00022465,2]
[386201712,1758240658970,-400.0,0.00022465,2]
[386201713,1758240658983,-400.0,0.00022465,2]
[386201714,1758240658993,-400.0,0.00022465,2]
[386201715,1758240659002,-451.14,0.00022465,2]
[386201716,1758240659012,-400.0,0.00022465,2]
[386201717,1758240659022,-400.0,0.00022465,2]
[386201718,1758240659032,-400.0,0.00022465,2]
[386201719,1758240659042,-400.0,0.00022465,2]
[386201720,1758240659052,-503.41,0.00022465,2]
[386201721,1758240659062,-400.0,0.00022465,2]
[386201722,1758240659072,-400.0,0.00022465,2]
[386201723,1758240659081,-447.49,0.00022465,2]
[386201724,1758240659091,-400.0,0.00022465,2]
[386201725,1758240659101,-400.0,0.00022465,2]
[386201726,1758240659111,-547.06,0.00022465,2]
[386201727,1758240659122,-400.0,0.00022465,2]
[386201728,1758240659132,-400.0,0.00022465,2]
[386201729,1758240659142,-400.0,0.00022465,2]
[386201730,1758240659151,-400.0,0.00022465,2]
[386201731,1758240659162,-791.23,0.00022465,2]
[386201732,1758240659171,-400.0,0.00022465,2]
[386201733,1758240659181,-564.67,0.00022465,2]
[386201734,1758240659191,-400.0,0.00022465,2]
[386201735,1758240659201,-456.77,0.00022465,2]
[386201736,1758240659211,-403.7,0.00022465,2]
[386201737,1758240659220,-400.0,0.00022465,2]
[386201738,1758240659230,-400.0,0.00022465,2]
[386201739,1758240659240,-400.0,0.00022465,2]
[386201740,1758240659250,-400.0,0.00022465,2]
[386201741,1758240659259,-400.0,0.00022465,2]
[386201742,1758240659269,-330.4,0.00022465,2]
[386201743,1758240659279,-400.0,0.00022465,2]
[386201744,1758240659290,-400.0,0.00022465,2]
[386201745,1758240659300,-400.0,0.00022465,2]
[386201746,1758240659309,-481.0,0.00022465,2]
[386201747,1758240659319,-400.0,0.00022465,2]
[386201748,1758240659330,-400.0,0.00022465,2]
[386201749,1758240659340,-400.0,0.00022465,2]
[386201750,1758240659350,-1036.77,0.00022465,2]
[386201751,1758240659359,-400.0,0.00022465,2]
[386201752,1758240659369,-400.0,0.00022465,2]
[386201753,1758240659379,-400.0,0.00022465,2]
[386201754,1758240659393,-414.11,0.00022465,2]
[386201755,1758240659403,-400.0,0.00022465,2]
[386201756,1758240659413,-400.0,0.00022465,2]
[386201757,1758240659423,-400.0,0.00022465,2]
[386201758,1758240659433,-400.0,0.00022465,2]
[386201759,1758240659443,-784.9,0.00022465,2]
[386201760,1758240659453,-400.0,0.00022465,2]
[386201761,1758240659463,-428.18,0.00022465,2]
[386201762,1758240659474,-400.0,0.00022465,2]
[386201763,1758240659483,-400.0,0.00022465,2]
[386201764,1758240659493,-425.7666823,0.00022465,2]
[386201765,1758240659503,-400.0,0.00022465,2]
[386201766,1758240659513,-400.0,0.00022465,2]
[386201767,1758240659523,-400.0,0.00022465,2]
[386201768,1758240659533,-435.76,0.00022465,2]
[386201769,1758240659543,-400.0,0.00022465,2]
[386201770,1758240659553,-273.26,0.00022465,2]
[386201771,1758240659562,-400.0,0.00022465,2]
[386201772,1758240659572,-425.91,0.00022465,2]
[386201773,1758240659582,-451.77,0.00022465,2]
[386201774,1758240659593,-400.0,0.00022465,2]
[386201775,1758240659603,-400.0,0.00022465,2]
[386201776,1758240659614,-400.0,0.00022465,2]
[386201777,1758240659628,-535.11824499,0.00022465,2]
[386201778,1758240659638,-400.0,0.00022465,2]
[386201779,1758240659648,-400.0,0.00022465,2]
[386201780,1758240659658,-400.0,0.00022465,2]
[386201781,1758240659668,-416.72283112,0.00022465,2]
[386201782,1758240659677,-400.0,0.00022465,2]
[386201783,1758240659691,-400.0,0.00022465,2]
[386201784,1758240659700,-478.92,0.00022465,2]
[386201785,1758240659710,-400.0,0.00022465,2]
[386201786,1758240659720,-400.0,0.00022465,2]
[386201787,1758240659730,-426.97,0.00022465,2]
[386201788,1758240659740,-400.0,0.00022465,2]
[386201789,1758240659749,-400.0,0.00022465,2]
[386201790,1758240659759,-400.0,0.00022465,2]
[386201791,1758240659768,-400.0,0.00022465,2]